fUST/lending_fUST_20240306
["ID","MTS","AMOUNT","RATE_DAILY","PERIOD"]
[316974519,1709659841161,-500.0,0.00023287,2]
[316974520,1709659841170,-500.0,0.00023287,2]
[316974522,1709659841180,-500.0,0.00023287,2]
[316974523,1709659841189,-500.0,0.00023287,2]
[316974524,1709659841198,-500.0,0.00023287,2]
[316974525,1709659841208,-500.0,0.00023287,2]
[316974526,1709659841217,-500.0,0.00023287,2]
[316974527,1709659841228,-500.0,0.00023287,2]
[316974528,1709659841238,-500.0,0.00023287,2]
[316974529,1709659841248,-500.0,0.00023287,2]
[316974530,1709659841257,-500.0,0.00023287,2]
[316974531,1709659841267,-500.0,0.00023287,2]
[316974532,1709659841276,-500.0,0.00023287,2]
[316974533,1709659841286,-224.38369584,0.00023287,2]
[316974534,1709659841295,-500.0,0.00023287,2]
[316974535,1709659841305,-500.0,0.00023287,2]
[316974536,1709659841315,-500.0,0.00023287,2]
[316974537,1709659841326,-500.0,0.00023287,2]
[316974538,1709659841335,-500.0,0.00023287,2]
[316974539,1709659841346,-536.5421615,0.00023287,2]
[316974540,1709659841356,-500.0,0.00023287,2]
[316974541,1709659841366,-500.0,0.00023287,2]
[316974542,1709659841375,-500.0,0.00023287,2]
[316974543,1709659841384,-500.0,0.00023287,2]
[316974544,1709659841393,-500.0,0.00023287,2]
[316974545,1709659841402,-500.0,0.00023287,2]
[316974546,1709659841411,-500.0,0.00023287,2]
[316974547,1709659841421,-500.0,0.00023287,2]
[316974548,1709659841432,-500.0,0.00023287,2]
[316974549,1709659841440,-500.0,0.00023287,2]
[316974550,1709659841449,-500.0,0.00023287,2]
[316974551,1709659841458,-500.0,0.00023287,2]
[316974552,1709659841467,-500.0,0.00023287,2]
[316974553,1709659841481,-500.0,0.00023287,2]
[316974554,1709659841490,-500.0,0.00023287,2]
[316974555,1709659841499,-435.71509952,0.00023287,2]
[316974556,1709659841509,-2718.98,0.00023287,2]
[316974557,1709659841518,-2718.98,0.00023287,2]
[316974558,1709659841527,-2718.98,0.00023287,2]
[316974559,1709659841536,-2718.98,0.00023287,2]
[316974560,1709659841546,-500.0,0.00023287,2]
[316974561,1709659841556,-500.0,0.00023287,2]
[316974562,1709659841566,-500.0,0.00023287,2]
[316974563,1709659841576,-500.0,0.00023287,2]
[316974564,1709659841585,-500.0,0.00023287,2]
[316974565,1709659841594,-397.27057809,0.00023287,2]
[316974566,1709659841603,-512.0176034,0.00023287,2]
[316974567,1709659841613,-500.0,0.00023287,2]
[316974568,1709659841622,-500.0,0.00023287,2]
[316974569,1709659841631,-500.0,0.00023287,2]
[316974570,1709659841640,-500.0,0.00023287,2]
[316974571,1709659841650,-167.13698508,0.00023287,2]
[316974572,1709659841659,-500.0,0.00023287,2]
[316974573,1709659841668,-500.0,0.00023287,2]
[316974574,1709659841677,-500.0,0.00023287,2]
[316974575,1709659841686,-421.59989349,0.00023287,2]
[316974576,1709659841695,-500.0,0.00023287,2]
[316974577,1709659841705,-500.0,0.00023287,2]
[316974578,1709659841715,-352.4834142,0.00023287,2]
[316974579,1709659841727,-620.74541669,0.00023287,2]
[316974580,1709659841736,-500.0,0.00023287,2]
[316974581,1709659841745,-500.0,0.00023287,2]
[316974582,1709659841754,-566.99731195,0.00023287,2]
[316974583,1709659841763,-512.78,0.00023287,2]
[316974584,1709659841772,-512.78,0.00023287,2]
[316974585,1709659841781,-512.78,0.00023287,2]
[316974586,1709659841790,-512.78,0.00023287,2]
[316974587,1709659841799,-512.78,0.00023287,2]
[316974588,1709659841808,-512.78,0.00023287,2]
[316974589,1709659841818,-500.0,0.00023287,2]
[316974590,1709659841828,-500.0,0.00023287,2]
[316974591,1709659841837,-1108.32,0.00023799,2]
[316974592,1709659841847,-1108.32,0.00023799,2]
[316974593,1709659841856,-608.16,0.00023799,2]
[316974594,1709659841866,-608.16,0.00023799,2]
[316974595,1709659841877,-153.0,0.00023808,2]
[316974596,1709659841888,-153.0,0.00023808,2]
[316974597,1709659841898,-153.0,0.00023808,2]
[316974598,1709659841908,-153.0,0.00023808,2]
[316974599,1709659841918,-152.97712527,0.0002388,2]
[316974600,1709659841929,-1108.32,0.00023894,2]
[316974601,1709659841939,-608.16,0.00023894,2]
[316974602,1709659841950,-500.0,0.00023897,2]
[316974603,1709659841960,-198.87211448,0.00023897,2]
[316974604,1709659841975,-574.9178493,0.00023897,2]
[316974605,1709659841990,-500.0,0.00023897,2]
[316974606,1709659842005,-500.0,0.00023897,2]
[316974607,1709659842015,-500.0,0.00023897,2]
[316974608,1709659842025,-512.78,0.00023898,2]
[316974609,1709659842038,-315.15,0.00023899,2]
[316974610,1709659842047,-315.15,0.00023899,2]
[316974611,1709659842056,-500.0,0.00023899,2]
[316974612,1709659842065,-500.0,0.00023899,2]
[316974613,1709659842077,-500.0,0.00023899,2]
[316974614,1709659842086,-1108.32,0.00023899,2]
[316974615,1709659842096,-1108.32,0.00023899,2]
[316974616,1709659842106,-1108.32,0.00023899,2]
[316974617,1709659842115,-1108.32,0.00023899,2]
[316974618,1709659842125,-1108.32,0.00023899,2]
[316974619,1709659842135,-1108.32,0.00023899,2]
[316974620,1709659842145,-608.16,0.00023899,2]
[316974621,1709659842155,-608.16,0.00023899,2]
[316974622,1709659842165,-608.16,0.00023899,2]
[316974623,1709659842175,-608.16,0.00023899,2]
[316974624,1709659842185,-608.16,0.00023899,2]
[316974625,1709659842194,-608.16,0.00023899,2]
[316974626,1709659842204,-500.0,0.00023899,2]
[316974627,1709659842214,-500.0,0.00023899,2]
[316974628,1709659842225,-500.0,0.00023899,2]
[316974629,1709659842243,-506.51747823,0.00023899,2]
[316974630,1709659842253,-500.0,0.00023899,2]
[316974631,1709659842263,-500.0,0.00023899,2]
[316974632,1709659842273,-190.55274162,0.00023899,2]
[316974633,1709659842283,-500.0,0.00023899,2]
[316974634,1709659842292,-500.0,0.00023899,2]
[316974635,1709659842302,-500.0,0.00023899,2]
[316974636,1709659842311,-401.31,0.00023899,2]
[316974637,1709659842320,-266.4668128,0.00023899,2]
[316974638,1709659842329,-500.0,0.00023899,2]
[316974639,1709659842339,-199.18779756,0.00023899,2]
[316974640,1709659842420,-500.0,0.00023899,2]
[316974641,1709659842431,-500.0,0.00023899,2]
[316974642,1709659842440,-500.0,0.00023899,2]
[316974643,1709659842449,-500.0,0.00023899,2]
[316974644,1709659842458,-500.0,0.00023899,2]
[316974645,1709659842467,-500.0,0.00023899,2]
[316974646,1709659842487,-500.0,0.00023899,2]
[316974647,1709659842496,-500.0,0.00023899,2]
[316974648,1709659842506,-500.0,0.00023899,2]
[316974649,1709659842515,-500.0,0.00023899,2]
[316974650,1709659842525,-500.0,0.00023899,2]
[316974651,1709659842535,-500.0,0.00023899,2]
[316974652,1709659842545,-500.0,0.00023899,2]
[316974653,1709659842555,-500.0,0.00023899,2]
[316974654,1709659842565,-341.25993205,0.00023899,2]
[316974655,1709659842574,-500.0,0.00023899,2]
[316974656,1709659842584,-500.0,0.00023899,2]
[316974657,1709659842593,-500.0,0.00023899,2]
[316974658,1709659842602,-500.0,0.00023899,2]
[316974659,1709659842611,-500.0,0.00023899,2]
[316974660,1709659842620,-615.91791779,0.00023899,2]
[316974661,1709659842629,-500.0,0.00023899,2]
[316974662,1709659842638,-500.0,0.00023899,2]
[316974663,1709659842648,-500.0,0.00023899,2]
[316974664,1709659842658,-500.0,0.00023899,2]
[316974665,1709659842666,-500.0,0.00023899,2]
[316974666,1709659842676,-500.0,0.00023899,2]
[316974667,1709659842685,-500.0,0.00023899,2]
[316974668,1709659842694,-500.0,0.00023899,2]
[316974669,1709659842704,-234.03240488,0.00023899,2]
[316974670,1709659842713,-500.0,0.00023899,2]
[316974671,1709659842723,-404.63527527,0.00023899,2]
[316974672,1709659842736,-159.27521809,0.00023899,2]
[316974673,1709659842746,-500.0,0.00023899,2]
[316974674,1709659842755,-500.0,0.00023899,2]
[316974675,1709659842764,-500.0,0.00023899,2]
[316974676,1709659842773,-576.23,0.00023899,2]
[316974677,1709659842782,-500.0,0.00023899,2]
[316974678,1709659842791,-500.0,0.00023899,2]
[316974679,1709659842800,-500.0,0.00023899,2]
[316974680,1709659842809,-500.0,0.00023899,2]
[316974681,1709659842818,-500.0,0.00023899,2]
[316974682,1709659842827,-636.35926681,0.00023899,2]
[316974683,1709659842836,-2718.98,0.00023899,2]
[316974684,1709659842846,-2718.98,0.00023899,2]
[316974685,1709659842855,-2718.98,0.00023899,2]
[316974687,1709659842865,-2718.98,0.00023899,2]
[316974689,1709659842874,-500.0,0.00023899,2]
[316974690,1709659842883,-500.0,0.00023899,2]
[316974692,1709659842893,-500.0,0.00023899,2]
[316974694,1709659842903,-500.0,0.00023899,2]
[316974696,1709659842912,-500.0,0.00023899,2]
[316974698,1709659842921,-500.0,0.00023899,2]
[316974700,1709659842930,-500.0,0.00023899,2]
[316974702,1709659842939,-500.0,0.00023899,2]
[316974704,1709659842949,-500.0,0.00023899,2]
[316974706,1709659842958,-315.15,0.00023899,2]
[316974708,1709659842967,-500.0,0.00023899,2]
[316974710,1709659842980,-315.15,0.00023899,2]
[316974712,1709659842989,-500.0,0.00023899,2]
[316974714,1709659842998,-315.15,0.00023899,2]
[316974716,1709659843008,-500.0,0.00023899,2]
[316974719,1709659843016,-315.15,0.00023899,2]
[316974722,1709659843025,-315.15,0.00023899,2]
[316974725,1709659843035,-315.15,0.00023899,2]
[316974727,1709659843044,-315.15,0.00023899,2]
[316974729,1709659843055,-315.15,0.00023899,2]
[316974731,1709659843064,-512.78,0.00023899,2]
[316974734,1709659843074,-512.78,0.00023899,2]
[316974737,1709659843083,-512.78,0.00023899,2]
[316974739,1709659843093,-512.78,0.00023899,2]
[316974741,1709659843102,-500.0,0.00023899,2]
[316974742,1709659843112,-500.0,0.00023899,2]
[316974744,1709659843121,-500.0,0.00023899,2]
[316974746,1709659843130,-142073.10994222,0.000239,2]
[316974747,1709659843139,-312.66051478,0.000239,2]
[316974749,1709659843148,-500.0,0.00023997,2]
[316974751,1709659843157,-500.0,0.00023997,2]
[316974753,1709659843166,-500.0,0.00023997,2]
[316974755,1709659843175,-500.0,0.00023997,2]
[316974756,1709659843184,-500.0,0.00023997,2]
[316974758,1709659843194,-500.0,0.00023997,2]
[316974759,1709659843203,-500.0,0.00023997,2]
[316974760,1709659843213,-500.0,0.00023997,2]
[316974761,1709659843222,-500.0,0.00023997,2]
[316974762,1709659843236,-2718.98,0.00023997,2]
[316974763,1709659843245,-500.0,0.00023997,2]
[316974764,1709659843254,-500.0,0.00023997,2]
[316974765,1709659843263,-500.0,0.00023997,2]
[316974766,1709659843272,-500.0,0.00023997,2]
[316974767,1709659843281,-512.78,0.00023997,2]
[316974768,1709659843291,-500.0,0.00023997,2]
[316974769,1709659843299,-261.54102441,0.00023998,3]
[316974770,1709659843309,-155.04031048,0.00023998,2]
[316974771,1709659843318,-295.26651217,0.00023998,2]
[316974772,1709659843327,-783.01189395,0.00023998,2]
[316974773,1709659843336,-231.77990261,0.00023998,2]
[316974774,1709659843346,-747.58840918,0.00023998,2]
[316974775,1709659843355,-163.29643085,0.00023998,2]
[316974776,1709659843364,-155.18156243,0.00023998,2]
[316974777,1709659843373,-20490.31178222,0.00023998,2]
[316974778,1709659843382,-205.42033407,0.00023998,2]
[316974779,1709659843391,-500.0,0.00023998,2]
[316974780,1709659843401,-1108.32,0.00023998,2]
[316974781,1709659843409,-1108.32,0.00023998,2]
[316974782,1709659843420,-1108.32,0.00023998,2]
[316974783,1709659843433,-1108.32,0.00023998,2]
[316974784,1709659843445,-1108.41440285,0.00023998,2]
[316974785,1709659843457,-608.16,0.00023998,2]
[316974786,1709659843469,-608.16,0.00023998,2]
[316974787,1709659843488,-608.16,0.00023998,2]
[316974788,1709659843499,-608.16,0.00023998,2]
[316974789,1709659843509,-608.32,0.00023998,2]
[316974790,1709659843520,-500.0,0.00023998,2]
[316974791,1709659843532,-401.08160822,0.00023998,2]
[316974792,1709659843543,-538.72875726,0.00023998,2]
[316974793,1709659843555,-652.42209267,0.00023998,2]
[316974794,1709659843568,-500.0,0.00023998,2]
[316974795,1709659843580,-500.0,0.00023998,2]
[316974796,1709659843591,-500.0,0.00023998,2]
[316974798,1709659843603,-500.0,0.00023998,2]
[316974800,1709659843614,-500.0,0.00023998,2]
[316974802,1709659843625,-500.0,0.00023998,2]
[316974804,1709659843636,-500.0,0.00023998,2]
[316974806,1709659843647,-2718.98,0.00023998,2]
[316974808,1709659843658,-155.06737625,0.00023998,2]
[316974810,1709659843670,-500.0,0.00023998,2]
[316974811,1709659843681,-500.0,0.00023998,2]
[316974812,1709659843693,-500.0,0.00023998,2]
[316974815,1709659843705,-500.0,0.00023998,2]
[316974817,1709659843717,-512.78,0.00023998,2]
[316974820,1709659843735,-512.78,0.00023998,2]
[316974821,1709659843747,-155.04031048,0.00023999,2]
[316974823,1709659843759,-500.0,0.00023999,2]
[316974825,1709659843771,-500.0,0.00023999,2]
[316974827,1709659843783,-500.0,0.00023999,2]
[316974829,1709659843795,-500.0,0.00023999,2]
[316974832,1709659843807,-500.0,0.00023999,2]
[316974834,1709659843817,-500.0,0.00023999,2]
[316974835,1709659843827,-500.0,0.00023999,2]
[316974836,1709659843836,-500.0,0.00023999,2]
[316974837,1709659843848,-500.0,0.00023999,2]
[316974839,1709659843861,-500.0,0.00023999,2]
[316974841,1709659843873,-500.0,0.00023999,2]
[316974844,1709659843884,-500.0,0.00023999,2]
[316974847,1709659843896,-500.0,0.00023999,2]
[316974851,1709659843907,-161.23883603,0.00023999,2]
[316974853,1709659843918,-500.0,0.00023999,2]
[316974854,1709659843930,-500.0,0.00023999,2]
[316974855,1709659843941,-500.0,0.00023999,2]
[316974857,1709659843953,-500.0,0.00023999,2]
[316974858,1709659843966,-500.0,0.00023999,2]
[316974859,1709659843980,-500.0,0.00023999,2]
[316974860,1709659843992,-500.0,0.00023999,2]
[316974861,1709659844005,-500.0,0.00023999,2]
[316974862,1709659844017,-500.0,0.00023999,2]
[316974863,1709659844029,-269.42,0.00023999,2]
[316974864,1709659844041,-500.0,0.00023999,2]
[316974865,1709659844053,-270.56,0.00023999,2]
[316974866,1709659844065,-500.0,0.00023999,2]
[316974867,1709659844077,-500.0,0.00023999,2]
[316974868,1709659844090,-500.0,0.00023999,2]
[316974869,1709659844101,-291.8676741,0.00023999,2]
[316974870,1709659844112,-500.0,0.00023999,2]
[316974871,1709659844122,-500.0,0.00023999,2]
[316974872,1709659844132,-500.0,0.00023999,2]
[316974873,1709659844142,-500.0,0.00023999,2]
[316974874,1709659844153,-500.0,0.00023999,2]
[316974875,1709659844164,-500.0,0.00023999,2]
[316974876,1709659844175,-500.0,0.00023999,2]
[316974877,1709659844187,-477.28,0.00023999,2]
[316974878,1709659844197,-500.0,0.00023999,2]
[316974880,1709659844208,-500.0,0.00023999,2]
[316974882,1709659844219,-500.0,0.00023999,2]
[316974884,1709659844234,-500.0,0.00023999,2]
[316974886,1709659844244,-500.0,0.00023999,2]
[316974888,1709659844254,-500.0,0.00023999,2]
[316974890,1709659844264,-500.0,0.00023999,2]
[316974892,1709659844274,-500.0,0.00023999,2]
[316974894,1709659844285,-500.0,0.00023999,2]
[316974896,1709659844295,-552.88,0.00023999,2]
[316974899,1709659844309,-500.0,0.00023999,2]
[316974901,1709659844321,-610.39,0.00023999,2]
[316974903,1709659844331,-500.0,0.00023999,2]
[316974905,1709659844342,-500.0,0.00023999,2]
[316974907,1709659844353,-500.0,0.00023999,2]
[316974909,1709659844364,-500.0,0.00023999,2]
[316974911,1709659844374,-500.0,0.00023999,2]
[316974914,1709659844385,-500.0,0.00023999,2]
[316974917,1709659844395,-500.0,0.00023999,2]
[316974920,1709659844406,-500.0,0.00023999,2]
[316974923,1709659844416,-500.0,0.00023999,2]
[316974926,1709659844426,-500.0,0.00023999,2]
[316974930,1709659844440,-500.0,0.00023999,2]
[316974933,1709659844450,-500.0,0.00023999,2]
[316974936,1709659844460,-314.5500418,0.00023999,2]
[316974939,1709659844471,-500.0,0.00023999,2]
[316974942,1709659844488,-500.0,0.00023999,2]
[316974945,1709659844499,-500.0,0.00023999,2]
[316974949,1709659844511,-293.24863722,0.00023999,2]
[316974952,1709659844522,-2718.98,0.00023999,2]
[316974955,1709659844532,-2718.98,0.00023999,2]
[316974958,1709659844543,-2718.98,0.00023999,2]
[316974961,1709659844553,-2718.98,0.00023999,2]
[316974964,1709659844565,-2718.98,0.00023999,2]
[316974968,1709659844576,-2718.98,0.00023999,2]
[316974972,1709659844587,-2718.98,0.00023999,2]
[316974974,1709659844597,-2718.98,0.00023999,2]
[316974976,1709659844607,-500.0,0.00023999,2]
[316974978,1709659844618,-2718.98,0.00023999,2]
[316974991,1709659844718,-500.0,0.00023999,2]
[316974994,1709659844748,-2718.98,0.00023999,2]
[316974996,1709659844758,-500.0,0.00023999,2]
[316974998,1709659844768,-2718.98,0.00023999,2]
[316975000,1709659844777,-2718.98,0.00023999,2]
[316975002,1709659844787,-500.0,0.00023999,2]
[316975004,1709659844796,-2718.98,0.00023999,2]
[316975006,1709659844806,-2719.02298116,0.00023999,2]
[316975008,1709659844819,-513.06740186,0.00023999,2]
[316975009,1709659844828,-500.0,0.00023999,2]
[316975011,1709659844838,-500.0,0.00023999,2]
[316975013,1709659844848,-500.0,0.00023999,2]
[316975015,1709659844859,-500.0,0.00023999,2]
[316975017,1709659844869,-500.0,0.00023999,2]
[316975019,1709659844879,-500.0,0.00023999,2]
[316975021,1709659844889,-500.0,0.00023999,2]
[316975023,1709659844899,-500.0,0.00023999,2]
[316975026,1709659844909,-500.0,0.00023999,2]
[316975027,1709659844918,-500.0,0.00023999,2]
[316975029,1709659844927,-500.0,0.00023999,2]
[316975031,1709659844937,-500.0,0.00023999,2]
[316975033,1709659844947,-419.58402767,0.00023999,2]
[316975035,1709659844956,-500.0,0.00023999,2]
[316975037,1709659844966,-500.0,0.00023999,2]
[316975039,1709659844975,-500.0,0.00023999,2]
[316975041,1709659844991,-500.0,0.00023999,2]
[316975043,1709659845001,-500.0,0.00023999,2]
[316975045,1709659845011,-500.0,0.00023999,2]
[316975047,1709659845023,-500.0,0.00023999,2]
[316975049,1709659845032,-500.0,0.00023999,2]
[316975051,1709659845042,-500.0,0.00023999,2]
[316975053,1709659845052,-495.78794763,0.00023999,2]
[316975055,1709659845062,-500.0,0.00023999,2]
[316975057,1709659845071,-500.0,0.00023999,2]
[316975059,1709659845081,-347.33147373,0.00023999,2]
[316975061,1709659845090,-512.78,0.00023999,2]
[316975063,1709659845099,-512.78,0.00023999,2]
[316975065,1709659845108,-512.78,0.00023999,2]
[316975067,1709659845117,-512.78,0.00023999,2]
[316975069,1709659845126,-512.78,0.00023999,2]
[316975071,1709659845135,-512.78,0.00023999,2]
[316975073,1709659845144,-512.78,0.00023999,2]
[316975075,1709659845153,-512.78,0.00023999,2]
[316975077,1709659845161,-512.78,0.00023999,2]
[316975078,1709659845170,-512.94928204,0.00023999,2]
[316975080,1709659845179,-727126.18661122,0.00024,5]
[316975083,1709659845197,-3235.19739015,0.00024,5]
[316975086,1709659845209,-6456.11080682,0.00024,5]
[316975088,1709659845221,-790.39314713,0.00024,5]
[316975090,1709659845236,-18120.50698445,0.00024,5]
[316975095,1709659845275,-2614.62489512,0.00022921,2]
[316975097,1709659845284,-644.3,0.00023277,3]
[316975099,1709659845293,-20946.4032649,0.00024,5]
[316975101,1709659845304,-251.2428,0.00024,5]
[316975102,1709659845316,-657.10637779,0.00024,5]
[316975104,1709659845327,-12304.48448873,0.00024,5]
[316975516,1709659849294,-18231.70560349,0.00022855,3]
[316975518,1709659849304,-504.72596105,0.00023287,2]
[316975520,1709659849313,-7924.60744282,0.00024,5]
[316975522,1709659849325,-864.40161806,0.00024,5]
[316975539,1709659849474,-37325.52787311,0.00024,5]
[316979666,1709661036953,-1880.71104706,0.00019916,2]
[316979668,1709661036963,-154.95351395,0.00019917,2]
[316979670,1709661036972,-167.248346,0.00020411,2]
[316979672,1709661036982,-190.31047497,0.00020521,2]
[316979674,1709661036992,-246.367993,0.00020739,2]
[316979676,1709661037002,-24900.0,0.00020814,2]
[316979678,1709661037012,-167.72507,0.00021067,2]
[316979680,1709661037022,-260.55042899,0.000219,2]
[316979682,1709661037032,-265.12845,0.00021918,2]
[316979684,1709661037041,-194.0,0.00022,2]
[316979686,1709661037051,-1667.68500194,0.00022168,2]
[316979688,1709661037060,-645.89175883,0.00022169,2]
[316979690,1709661037070,-875.09853826,0.00022191,2]
[316979692,1709661037079,-194.0,0.00022192,2]
[316979694,1709661037088,-153.0,0.00022381,2]
[316979696,1709661037098,-200.8478084,0.00022382,2]
[316979698,1709661037113,-200.8478084,0.00022382,2]
[316979700,1709661037122,-200.8478084,0.00022382,2]
[316979702,1709661037132,-200.8478084,0.00022382,2]
[316979704,1709661037141,-200.8478084,0.00022382,2]
[316979706,1709661037154,-3509.59272499,0.00022858,2]
[316979708,1709661037163,-8756.31245201,0.00022858,3]
[316979710,1709661037173,-419.94588602,0.00022858,2]
[316979712,1709661037182,-8800.65700487,0.00022858,3]
[316979714,1709661037191,-6056.0929469,0.0002286,3]
[316979716,1709661037201,-172.31662553,0.0002286,2]
[316979718,1709661037210,-313.65831277,0.00022862,2]
[316979720,1709661037220,-3539.28911466,0.00022862,3]
[316979722,1709661037229,-500.0,0.00023,3]
[316979724,1709661037239,-155.0,0.00023,2]
[316979726,1709661037249,-194.0,0.00023014,2]
[316979728,1709661037258,-236.22604378,0.00023155,2]
[316979730,1709661037267,-161.1045073,0.00023155,2]
[316979732,1709661037276,-303.2066195,0.00023155,2]
[316979734,1709661037285,-280.48385887,0.00023155,2]
[316979736,1709661037294,-2598.02005704,0.00023156,3]
[316979738,1709661037303,-2489.70479162,0.00023156,3]
[316979750,1709661037389,-5000.0,0.00023156,7]
[316979753,1709661037421,-5000.0,0.00023156,7]
[316979755,1709661037430,-5000.0,0.00023156,7]
[316979757,1709661037439,-5000.0,0.00023156,7]
[316979759,1709661037448,-3009.16519114,0.00023156,7]
[316979761,1709661037460,-1990.83480886,0.00023156,7]
[316979763,1709661037469,-1022.41722411,0.00023158,3]
[316979765,1709661037478,-153.0,0.00023178,2]
[316979767,1709661037487,-200.8478084,0.00023178,2]
[316979769,1709661037497,-1110.55755614,0.00023187,2]
[316979771,1709661037506,-200.8478084,0.00023203,2]
[316979773,1709661037515,-200.8478084,0.00023203,2]
[316979775,1709661037524,-200.8478084,0.00023204,2]
[316979777,1709661037533,-200.8478084,0.00023204,2]
[316979779,1709661037542,-308.6140268,0.00023214,2]
[316979781,1709661037551,-621.29458794,0.00023277,2]
[316979783,1709661037560,-701.87,0.00023277,3]
[316979785,1709661037570,-500.0,0.00023287,2]
[316979787,1709661037579,-500.0,0.00023287,2]
[316979789,1709661037590,-500.0,0.00023287,2]
[316979791,1709661037599,-500.0,0.00023287,2]
[316979793,1709661037609,-343.88468709,0.00023287,2]
[316979795,1709661037618,-500.0,0.00023287,2]
[316979797,1709661037627,-500.0,0.00023287,2]
[316979799,1709661037636,-500.0,0.00023287,2]
[316979801,1709661037645,-500.0,0.00023287,2]
[316979803,1709661037657,-504.12492288,0.00023287,2]
[316979805,1709661037666,-502.07242839,0.00023287,2]
[316979807,1709661037675,-500.0,0.00023287,2]
[316979809,1709661037685,-500.0,0.00023287,2]
[316979811,1709661037694,-500.0,0.00023287,2]
[316979813,1709661037703,-500.0,0.00023287,2]
[316979815,1709661037713,-482.59414822,0.00023287,2]
[316979817,1709661037722,-500.0,0.00023287,2]
[316979819,1709661037731,-500.0,0.00023287,2]
[316979821,1709661037740,-500.0,0.00023287,2]
[316979823,1709661037750,-501.86173744,0.00023287,2]
[316979825,1709661037759,-500.0,0.00023287,2]
[316979827,1709661037769,-500.0,0.00023287,2]
[316979829,1709661037778,-500.0,0.00023287,2]
[316979831,1709661037787,-500.0,0.00023287,2]
[316979833,1709661037797,-500.0,0.00023287,2]
[316979835,1709661037806,-500.0,0.00023287,2]
[316979836,1709661037815,-500.0,0.00023287,2]
[316979838,1709661037828,-500.0,0.00023287,2]
[316979841,1709661037838,-245.35818429,0.00023287,2]
[316979842,1709661037848,-500.0,0.00023287,2]
[316979844,1709661037857,-500.0,0.00023287,2]
[316979846,1709661037867,-322.94,0.00023287,2]
[316979848,1709661037876,-500.0,0.00023287,2]
[316979851,1709661037886,-500.0,0.00023287,2]
[316979852,1709661037896,-500.0,0.00023287,2]
[316979855,1709661037908,-500.0,0.00023287,2]
[316979857,1709661037918,-500.0,0.00023287,2]
[316979858,1709661037926,-500.0,0.00023287,2]
[316979860,1709661037936,-1246.85,0.00023287,2]
[316979863,1709661037945,-1246.85,0.00023287,2]
[316979864,1709661037954,-1246.85,0.00023287,2]
[316979866,1709661037963,-1246.85,0.00023287,2]
[316979868,1709661037972,-1246.85,0.00023287,2]
[316979870,1709661037981,-1246.85,0.00023287,2]
[316979872,1709661037991,-2128.58,0.00023287,2]
[316979874,1709661038001,-2128.58,0.00023287,2]
[316979877,1709661038011,-2128.58,0.00023287,2]
[316979878,1709661038020,-2128.58,0.00023287,2]
[316979881,1709661038030,-2128.58,0.00023287,2]
[316979883,1709661038039,-2128.58,0.00023287,2]
[316979885,1709661038048,-500.0,0.00023287,2]
[316979887,1709661038057,-500.0,0.00023287,2]
[316979888,1709661038066,-500.0,0.00023287,2]
[316979889,1709661038076,-500.0,0.00023287,2]
[316979890,1709661038085,-500.0,0.00023287,2]